[Event "3rd Tal Heraklion-IM 2022"]
[Site "Heraklion"]
[Date "2022.04.29"]
[Round "4.2"]
[White "Lirindzakis, Timotheos"]
[Black "Peng, Li Min"]
[Result "0-1"]
[ECO "D37"]
[WhiteElo "2164"]
[BlackElo "2517"]
[Annotator "TA"]
[PlyCount "80"]
[EventDate "2022.04.18"]
[EventType "tourn"]
[EventCountry "GRE"]
[SourceTitle "playchess.com"]
[Source "ChessBase"]
[SourceQuality "1"]
[TimeControl "40/5400+30:1800+30"]

{[%evp 9,80,22,24,24,27,23,30,25,33,25,35,35,37,33,37,37,37,25,37,35,39,2,33,30,32,34,37,1,5,0,0,6,12,1,16,20,13,13,38,47,50,56,58,48,57,62,59,41,45,41,47,33,42,0,0,-163,-157,-179,-192,-315,-301,-301,-302,-327,-316,-627,-572,-29984,-29985,-29989,-29990,-29993,-29994]} 1. d4 {[%emt 0:00:04]} d5 {[%emt 0:09:51]} 2. c4 {[%emt 0:00:10]} e6 {[%emt 0:00:03]} 3. Nf3 {[%emt 0:00:14]} Nf6 {[%emt 0:00:10]} 4. Nc3 {[%emt 0:00:17]} a6 {[%emt 0:03:50]} 5. cxd5 {[%emt 0:00:18]} exd5 {[%emt 0:00:06]} 6. Bg5 {[%emt 0:00:24] D37: Queen's Gambit Declined: 5 Bf4.} Be6 {[%emt 0:00:06]} 7. e3 {[%emt 0:00:41]} Nbd7 {[%emt 0:00:07]} 8. Bd3 {[%emt 0:01:02] White has an edge.} Bd6 {[%emt 0:00:27]} 9. O-O {[%emt 0:01:38]} O-O {[%emt 0:00:10]} 10. h3 {[%emt 0:05:43]} h6 {[%emt 0:00:20]} 11. Bf4 {[%emt 0:00:57]} Qe7 {[%emt 0:03:19]} 12. Bxd6 {[%emt 0:11:03]} Qxd6 {[%emt 0:00:05]} 13. Rb1 {[%emt 0:05:10]} c6 {[%emt 0:04:28]} 14. Qc2 {[%emt 0:03:25] [#]} Nh5 $146 {[%emt 0:02:35]} ({Predecessor:} 14... Rfe8 15. b4 b5 16. a4 Nb6 17. a5 Nc4 18. Bxc4 bxc4 19. Ne5 Reb8 20. Qa4 Rc8 {0-1 (57) Zhao,J (2604)-Khismatullin,D (2632) Riadh 2017}) 15. Nh4 {[%emt 0:09:01]} Rae8 {[%emt 0:07:24]} (15... Qe7 $5 {[%cal Re7h4]} 16. Nf3 g6 $11) 16. Rbe1 {[%emt 0:03:56]} c5 {[%emt 0:18:04]} 17. dxc5 {[%emt 0:04:24]} Nxc5 {[%emt 0:00:03]} 18. Be2 {[%emt 0:00:54]} Nf6 {[%emt 0:00:04]} 19. Rd1 {[%emt 0:00:32]} Rc8 {[%emt 0:04:00]} 20. Qb1 {[%emt 0:04:04]} b5 {[%emt 0:01:00]} 21. a3 {[%emt 0:02:34]} Rfe8 {[%emt 0:00:13]} 22. Nf3 {[%emt 0:03:00]} Qd7 {[%emt 0:02:11]} 23. Nd4 {[%emt 0:01:11]} Qb7 {[%emt 0:08:25]} 24. Rc1 {[%emt 0:11:27]} Bd7 {[%emt 0:05:41]} 25. Rfd1 {[%emt 0:05:55]} Qb8 {[%emt 0:03:13]} 26. Qa2 {[%emt 0:06:50]} Qd6 {[%emt 0:00:35]} 27. Bf3 {[%emt 0:02:39]} Be6 {[%emt 0:04:09]} 28. Rc2 {[%emt 0:03:17]} Ncd7 {[%emt 0:00:18]} 29. Rdc1 {[%emt 0:04:33]} Ne5 {[%emt 0:02:02]} 30. Be2 {[%emt 0:00:52]} Bd7 {[%emt 0:00:02]} 31. Bf1 {[%emt 0:04:19]} g5 $1 {[%emt 0:02:00][%cal Bg7g5,Bg5g4][%mdl 32]} 32. Nb1 $2 {[%emt 0:03:12]} (32. Nce2 $11 {and White is okay.}) 32... g4 $19 {[%emt 0:00:29] White must now prevent ...Rxc2.} 33. Rxc8 {[%emt 0:01:09]} Bxc8 {[%emt 0:00:01]} 34. b3 {[%emt 0:00:56]} (34. Nd2 $142) 34... gxh3 {[%emt 0:00:51]} 35. gxh3 {[%emt 0:01:05]} Kh8 {[%emt 0:00:05]} 36. Kh1 {[%emt 0:00:49]} Rg8 {[%emt 0:00:11] aiming for ...Ne4.} 37. Bg2 {[%emt 0:00:37]} (37. Nd2 Nh5 38. Qb2) 37... Nd3 {[%emt 0:01:42] Strongly threatening ...Bxh3.} 38. Rd1 {[%emt 0:00:30] [#]} Ne4 $1 {[%emt 0:00:51] Black mates.} 39. Rxd3 {[%emt 0:00:35]} (39. Bxe4 dxe4) 39... Qg6 {[%emt 0:00:00][%csl Gg8][%cal Rg6g2]} 40. f3 {[%emt 0:00:00] [#]} Bxh3 $1 {[%emt 0:00:00][%mdl 512] Weighted Error Value: White=0.46/Black=0.05 (flawless)} 0-1

[Event "3rd Tal Heraklion-IM 2022"]
[Site "Heraklion"]
[Date "2022.04.29"]
[Round "4.3"]
[White "Sandalakis, Nikolaos"]
[Black "Langrock, Hannes"]
[Result "0-1"]
[ECO "B15"]
[WhiteElo "2240"]
[BlackElo "2351"]
[Annotator "TA"]
[PlyCount "72"]
[EventDate "2022.04.18"]
[EventType "tourn"]
[EventCountry "GRE"]
[SourceTitle "playchess.com"]
[Source "ChessBase"]
[SourceQuality "1"]
[TimeControl "40/5400+30:1800+30"]

{[%evp 10,72,27,22,22,14,31,1,18,20,26,29,27,13,0,15,22,0,0,0,0,-15,-14,-14,0,-13,4,-154,-85,-127,-134,-126,-125,-172,-122,-125,-121,-135,-112,-104,-73,-163,-172,-257,-262,-761,-763,-1066,-1070,-1035,-1036,-29988,-727,-763,-753,-1484,-798,-5518,-1056,-1119,-1029,-1011,-992,-992,-962]} 1. e4 {[%emt 0:00:18]} c6 {[%emt 0:00:26]} 2. d4 {[%emt 0:02:48]} d5 {[%emt 0:00:13]} 3. Nc3 {[%emt 0:00:04]} dxe4 {[%emt 0:00:09]} 4. Nxe4 {[%emt 0:00:04]} Nf6 {[%emt 0:00:16]} 5. Nxf6+ {[%emt 0:00:07]} exf6 {[%emt 0:00:07]} 6. Be3 {[%emt 0:05:57]} Bd6 {[%emt 0:00:44] B15: Caro-Kann: 3 Nc3: 3...g6 and 3...dxe4 4 Nxe4 Nf6 5 Nxf6+ exf6.} 7. Bd3 {[%emt 0:01:16]} O-O {[%emt 0:08:52]} 8. Ne2 {[%emt 0:02:40]} ({But not} 8. Qh5 g6 9. Qd1 Qb6 $11) 8... Re8 {[%emt 0:10:29] The position is equal.} (8... Bf5 $5) 9. O-O {[%emt 0:02:03]} Na6 {[%emt 0:03:11]} 10. c4 {[%emt 0:10:17]} Nc7 {[%emt 0:03:33]} 11. Qc2 {[%emt 0:06:31]} g6 {[%emt 0:01:13] [#]} 12. Nc3 $146 {[%emt 0:12:06]} ({Predecessor:} 12. Rad1 Be6 13. Nc3 Bf8 14. Bf4 Rc8 15. Rfe1 Qd7 16. Ne4 Qd8 17. Nc5 b6 18. Ne4 {1-0 (71) So,W (2772)-Caruana,F (2791) Chess.com INT 2021}) 12... f5 {[%emt 0:12:24]} 13. Rae1 {[%emt 0:13:18]} Bd7 {[%emt 0:24:49]} 14. Qc1 {[%emt 0:02:47]} Qf6 {[%emt 0:02:40]} 15. c5 {[%emt 0:04:28]} Bf8 {[%emt 0:00:45]} 16. Bf4 {[%emt 0:00:40]} Ne6 {[%emt 0:05:38]} (16... Qxd4 $2 17. Bxc7 Qxc5 18. Qf4 $18) 17. Be5 {[%emt 0:00:12]} Qd8 {[%emt 0:03:20]} 18. g4 $2 {[%emt 0:11:29]} (18. Bc4 $11) 18... f6 {[%emt 0:05:20]} ({Black should play} 18... Qh4 $1 {[%cal Rh4g4]} 19. Qd1 Bg7 20. gxf5 Nxc5 $1 {[%mdl 512]}) 19. gxf5 {[%emt 0:06:04]} fxe5 {[%emt 0:00:06]} 20. fxe6 {[%emt 0:08:23]} Bxe6 {[%emt 0:00:07]} 21. d5 {[%emt 0:02:09]} (21. Rxe5 $17 Qxd4 22. Qe3) 21... Bxd5 {[%emt 0:01:53]} ({Inferior is} 21... Bxc5 22. dxe6 Qxd3 23. Rxe5 $15) ({Better is} 21... cxd5 $19 22. Rxe5 Bg7) 22. Nxd5 $17 {[%emt 0:01:48]} cxd5 {[%emt 0:00:07]} 23. Bb5 {[%emt 0:00:39]} Re6 {[%emt 0:03:04]} 24. Rd1 {[%emt 0:00:53]} Qh4 {[%emt 0:01:07] Inhibits Bc4.} 25. f4 {[%emt 0:01:20]} (25. Bd7 $17 {is a better defense.} Qg4+ 26. Kh1 Qf3+ 27. Kg1) 25... Rd8 $19 {[%emt 0:03:14]} 26. Kh1 {[%emt 0:01:25] [#]} (26. Qe3 $142) 26... Bh6 $1 {[%emt 0:00:27]} 27. Bc4 $2 {[%emt 0:03:39]} (27. Qc2 Bxf4 28. b4) 27... Bxf4 {[%emt 0:03:24]} 28. Rxf4 {[%emt 0:00:23]} exf4 {[%emt 0:02:24]} 29. Qd2 {[%emt 0:00:39]} Re5 {[%emt 0:01:53] Strongly threatening ...f3.} 30. Bb3 {[%emt 0:00:14]} Kg7 {[%emt 0:01:13]} (30... f3 $142 31. Kg1 Re2 32. Bxd5+ Kf8 33. Qxe2 fxe2 34. Rb1 Rxd5 35. Kg2 Qg4+ 36. Kf2 Qf4+ 37. Kg1 Rg5+ 38. Kh1 Qf3#) 31. Qd4 {[%emt 0:00:46] Black is clearly winning.} Qf6 {[%emt 0:00:17] And now ...Rde8 would win.} 32. Qb4 {[%emt 0:00:23]} Rd7 {[%emt 0:00:30]} 33. Qa4 {[%emt 0:00:32]} Qf5 {[%emt 0:00:52]} 34. Bc2 {[%emt 0:00:35]} Qg4 {[%emt 0:00:14] ( -> ...Qf3+)} 35. Qd4 {[%emt 0:00:32]} Qf3+ {[%emt 0:00:23]} 36. Kg1 {[%emt 0:00:03]} Qe3+ {[%emt 0:00:42] Weighted Error Value: White=1.10/Black=0.74} 0-1

[Event "3rd Tal Heraklion-IM 2022"]
[Site "Heraklion"]
[Date "2022.04.29"]
[Round "4.5"]
[White "Cmiel, Thorsten"]
[Black "Rakshitta Ravi"]
[Result "0-1"]
[ECO "A29"]
[WhiteElo "2079"]
[BlackElo "2240"]
[Annotator "TA"]
[PlyCount "42"]
[EventDate "2022.04.18"]
[EventType "tourn"]
[EventCountry "GRE"]
[SourceTitle "playchess.com"]
[Source "ChessBase"]
[SourceQuality "1"]
[TimeControl "40/5400+30:1800+30"]

{[%evp 21,42,16,3,-2,-11,-42,22,-26,-25,-18,-13,-25,-23,-36,-10,-61,0,-80,-72,-69,-57,-341,-329]} 1. Nf3 {[%emt 0:03:16]} Nf6 {[%emt 0:00:09]} 2. c4 {[%emt 0:01:35]} Nc6 {[%emt 0:01:22]} 3. g3 {[%emt 0:07:23]} e5 {[%emt 0:00:24]} 4. Bg2 {[%emt 0:00:24]} d5 {[%emt 0:00:11]} 5. cxd5 {[%emt 0:00:13]} Nxd5 {[%emt 0:00:08]} 6. Nc3 {[%emt 0:00:17]} Nb6 {[%emt 0:00:15]} 7. O-O {[%emt 0:00:08]} Be7 {[%emt 0:00:05]} 8. d3 {[%emt 0:04:40]} O-O {[%emt 0:00:06]} 9. Be3 {[%emt 0:02:05]} Be6 {[%emt 0:01:00]} 10. Rc1 {[%emt 0:06:48]} f5 {[%emt 0:00:21]} 11. a3 {[%emt 0:00:07]} Kh8 {[%emt 0:03:14] [#]} 12. Nb1 $146 {[%emt 0:08:44][%cal Oc1c6] A29: English Opening: Four Knights Variation with 4 g3.} ({Predecessor:} 12. b4 a6 13. Na4 Nxa4 14. Qxa4 Bd5 15. Bc5 Bd6 16. Qc2 Qe8 17. e3 Rd8 18. Qb2 Qh5 19. Qe2 f4 20. gxf4 exf4 {1-0 (33) Tomashevsky,E (2708)-Sasikiran,K (2650) Chess.com INT 2022}) 12... Bf6 {[%emt 0:12:23]} 13. b4 {[%emt 0:08:49]} a5 {[%emt 0:12:14]} (13... Nd4 $15) 14. b5 {[%emt 0:00:22]} (14. Bc5 {is superior.}) 14... Nd4 $11 {[%emt 0:00:12]} 15. Nxd4 {[%emt 0:16:26]} exd4 {[%emt 0:00:07]} 16. Bf4 {[%emt 0:00:08]} (16. Bd2 $5 {[%cal Rg2b7]}) 16... Nd5 {[%emt 0:00:17]} 17. Bxd5 {[%emt 0:00:38]} Qxd5 {[%emt 0:01:45]} 18. Qa4 {[%emt 0:02:36]} (18. a4 $11) 18... Be5 {[%emt 0:10:31]} ({Black should try} 18... b6 $15) 19. e4 {[%emt 0:10:37]} (19. Bxe5 $11 {remains equal.} Qxe5 20. Rfe1) 19... fxe4 $17 {[%emt 0:15:55]} 20. dxe4 {[%emt 0:00:23]} Qd6 {[%emt 0:00:05]} ({Don't do} 20... Qxe4 21. Rce1 Rxf4 22. Rxe4 Rxe4 23. Qc2 $16) 21. Bd2 {[%emt 0:01:56][%mdl 8192] [#]} (21. Bxe5 $15 Qxe5 22. Rfd1) 21... Rf3 {[%emt 0:02:13] Weighted Error Value: White=0.65/Black=0.21 (precise)} 0-1

[Event "3rd Tal Heraklion-IM 2022"]
[Site "Heraklion"]
[Date "2022.04.30"]
[Round "5.1"]
[White "Rakshitta Ravi"]
[Black "Kotsinis, Alexandros"]
[Result "1/2-1/2"]
[ECO "C24"]
[WhiteElo "2240"]
[BlackElo "2055"]
[Annotator "TA"]
[PlyCount "89"]
[EventDate "2022.04.18"]
[EventType "tourn"]
[EventCountry "GRE"]
[SourceTitle "playchess.com"]
[Source "ChessBase"]
[SourceQuality "1"]
[TimeControl "40/5400+30:1800+30"]

{[%evp 9,89,0,29,0,0,0,0,-4,0,-14,0,0,0,0,19,0,15,0,0,11,0,7,11,0,0,0,0,0,13,0,0,0,0,0,26,32,35,25,27,24,23,27,60,0,0,0,6,10,14,16,11,11,18,15,34,37,45,11,11,4,9,10,12,10,22,0,0,3,1,6,6,0,0,0,0,0,0,0,0,0,0,0]} 1. e4 {[%emt 0:00:25]} e5 {[%emt 0:00:05]} 2. Bc4 {[%emt 0:00:48][%cal Bf1c4,Bc4b3,Bb3a2][%mdl 32]} Nf6 {[%emt 0:00:14]} 3. d3 {[%emt 0:00:07]} c6 {[%emt 0:00:54]} 4. Nf3 {[%emt 0:01:16]} Be7 {[%emt 0:00:08]} 5. Nc3 {[%emt 0:02:55]} d6 {[%emt 0:00:25]} (5... b5 $5 {[%cal Rb5c4]} 6. Bb3 d6 $11) 6. Bb3 {[%emt 0:04:55] C24: Bishop's Opening: 2...Nf6.} O-O {[%emt 0:00:41]} 7. h3 {[%emt 0:00:17]} Nbd7 {[%emt 0:04:42]} 8. a4 {[%emt 0:05:24]} Nc5 {[%emt 0:03:59]} 9. Ba2 {[%emt 0:02:44] [#]} a5 $146 {[%emt 0:02:51]} ({Predecessor:} 9... Be6 10. Bxe6 Nxe6 11. O-O Qc7 12. d4 exd4 13. Nxd4 Rad8 14. Be3 Nxd4 15. Qxd4 b6 16. Rad1 d5 17. exd5 Nxd5 18. Nxd5 Rxd5 19. Qe4 Rfd8 20. Rxd5 cxd5 21. Qd3 {½-½ (21) Lobo,A (1901)-Arambulo Urdaneta,H (2031) ICCF email 2016}) 10. Be3 {[%emt 0:03:27]} b6 {[%emt 0:13:03]} 11. O-O {[%emt 0:07:26]} Be6 {[%emt 0:09:32]} 12. Re1 {[%emt 0:08:38]} Qb8 {[%emt 0:16:24]} 13. Bg5 {[%emt 0:23:47]} Bxa2 {[%emt 0:14:33]} 14. Rxa2 {[%emt 0:00:07]} Ne6 {[%emt 0:01:33]} 15. Bh4 {[%emt 0:02:01]} Re8 {[%emt 0:12:19]} 16. d4 {[%emt 0:06:27]} exd4 {[%emt 0:00:28]} 17. Nxd4 {[%emt 0:00:16]} Nxd4 {[%emt 0:00:07]} 18. Qxd4 {[%emt 0:00:08]} Nd7 {[%emt 0:01:51][%cal Bf6d7,Bd7c5,Bc5a6,Ba6b4][%mdl 32]} 19. Bg3 {[%emt 0:03:05]} Nc5 {[%emt 0:05:33]} 20. f3 {[%emt 0:06:58]} Qb7 {[%emt 0:03:42]} 21. Qc4 {[%emt 0:02:21]} ({Don't blunder} 21. Bxd6 $2 Rad8 22. e5 Bxd6 $19) 21... Qa6 {[%emt 0:02:45]} 22. Qxa6 {[%emt 0:01:37]} Nxa6 {[%emt 0:00:01]} 23. Raa1 {[%emt 0:00:12]} Nb4 {[%emt 0:00:39]} 24. Re2 {[%emt 0:00:06]} d5 {[%emt 0:04:51]} 25. Bf2 {[%emt 0:01:39]} Bc5 {[%emt 0:00:57]} 26. exd5 {[%emt 0:09:33]} ({White should play} 26. Bxc5 $14 bxc5 27. Rd2) 26... Rxe2 $11 {[%emt 0:00:41]} ({Don't do} 26... cxd5 27. Rd1 $14) 27. Nxe2 {[%emt 0:00:02]} Bxf2+ {[%emt 0:00:15]} 28. Kxf2 {[%emt 0:00:05] next dxc6 is good for White.} Nxd5 $14 {[%emt 0:00:16][%mdl 4096] Endgame KRN-KRN} 29. Rd1 {[%emt 0:00:04]} Kf8 {[%emt 0:00:39]} 30. Nd4 {[%emt 0:03:23]} Ne7 {[%emt 0:00:29]} 31. c3 {[%emt 0:00:22]} f6 {[%emt 0:00:51]} 32. Ne6+ {[%emt 0:02:51]} Kf7 {[%emt 0:00:01]} 33. Nd8+ {[%emt 0:01:20]} Ke8 {[%emt 0:00:29] The position is equal.} 34. Nb7 {[%emt 0:00:06]} Rb8 {[%emt 0:00:48]} 35. Nd6+ {[%emt 0:00:02]} Kf8 {[%emt 0:00:01]} 36. Ne4 {[%emt 0:01:49]} f5 {[%emt 0:00:17]} 37. Ng5 {[%emt 0:00:17]} h6 {[%emt 0:00:23]} 38. Ne6+ {[%emt 0:00:05]} Kf7 {[%emt 0:00:29]} 39. Rd6 {[%emt 0:00:20]} b5 {[%emt 0:00:55]} 40. Nc5 {[%emt 0:00:00]} bxa4 {[%emt 0:00:00]} 41. Nxa4 {[%emt 0:04:42]} f4 {[%emt 0:04:13]} 42. Rd7 {[%emt 0:01:45]} Rb5 {[%emt 0:01:17]} 43. Ra7 {[%emt 0:02:05]} Kf6 {[%emt 0:02:48]} 44. Ra6 {[%emt 0:06:11]} Rd5 {[%emt 0:02:41]} 45. Ke2 {[%emt 0:06:56] Weighted Error Value: White=0.06 (flawless) /Black=0.05 (flawless)} 1/2-1/2

[Event "3rd Tal Heraklion-IM 2022"]
[Site "Heraklion"]
[Date "2022.04.30"]
[Round "5.2"]
[White "Bracker, Arne"]
[Black "Cmiel, Thorsten"]
[Result "1-0"]
[ECO "B13"]
[WhiteElo "2276"]
[BlackElo "2079"]
[Annotator "TA"]
[PlyCount "97"]
[EventDate "2022.04.18"]
[EventType "tourn"]
[EventCountry "GRE"]
[SourceTitle "playchess.com"]
[Source "ChessBase"]
[SourceQuality "1"]
[TimeControl "40/5400+30:1800+30"]

{[%evp 9,97,14,35,11,9,6,10,0,5,13,10,-33,-20,-67,-64,-68,-68,-102,-39,-38,-52,-52,-8,-12,-2,-7,0,0,0,0,123,119,126,68,75,38,49,32,58,62,62,55,72,47,70,-73,-78,-110,-84,-59,-62,-161,-139,-142,0,0,36,37,75,83,148,135,131,143,129,129,157,128,139,100,95,42,90,0,0,-39,188,200,188,173,301,286,316,298,952,940,1128,972,738,706]} 1. e4 {[%emt 0:00:04]} c6 {[%emt 0:01:35]} 2. d4 {[%emt 0:00:42]} d5 {[%emt 0:00:31]} 3. exd5 {[%emt 0:00:14]} cxd5 {[%emt 0:00:12]} 4. Bd3 {[%emt 0:00:10]} Nc6 {[%emt 0:00:05]} 5. c3 {[%emt 0:00:13]} e6 {[%emt 0:00:06]} 6. f4 {[%emt 0:03:14] B13: Caro-Kann: Exchange Variation and Panov-Botvinnik Attack.} g6 {[%emt 0:06:33]} 7. Nf3 {[%emt 0:00:44]} Bg7 {[%emt 0:00:55]} 8. O-O {[%emt 0:01:08] The position is equal.} Nge7 {[%emt 0:00:13]} 9. Qe2 {[%emt 0:04:59] [#]} Qc7 $146 {[%emt 0:04:37]} ({Predecessor:} 9... O-O 10. Be3 Re8 11. Nbd2 a6 12. a4 b6 13. b4 Qc7 14. g3 Nf5 15. b5 Nce7 {1-0 (34) Schmoldt,J-Smeckert,D Ann Arbor 1991}) 10. Nbd2 {[%emt 0:05:38]} Qxf4 {[%emt 0:10:07]} 11. Ne4 {[%emt 0:32:48]} Qc7 $15 {[%emt 0:02:21]} 12. Neg5 {[%emt 0:02:01][%cal Og5f7]} O-O {[%emt 0:02:38]} 13. Bd2 {[%emt 0:05:33]} e5 {[%emt 0:16:50]} (13... Qb6 $17 {Hoping for ...h6.} 14. Bf4 h6) 14. Nxe5 $1 {[%emt 0:05:41]} Nxe5 {[%emt 0:00:27]} 15. dxe5 {[%emt 0:00:03]} Qxe5 {[%emt 0:00:16]} 16. Qf2 {[%emt 0:02:24]} Nf5 {[%emt 0:01:14][%cal Be7f5,Bf5h6,Bh6g4][%mdl 32]} 17. Rae1 {[%emt 0:04:34]} Qc7 {[%emt 0:00:53]} 18. g4 $36 {[%emt 0:03:41][%mdl 2048] White is more active.} Nh6 {[%emt 0:00:48]} (18... h6 $2 19. gxf5 hxg5 20. f6 $18 (20. fxg6 Bh3 $14) (20. Bxg5 Bxf5 21. Bxf5 gxf5 $14)) 19. h3 {[%emt 0:00:33]} Bxg4 {[%emt 0:07:35]} 20. hxg4 $16 {[%emt 0:02:36]} Nxg4 {[%emt 0:00:04]} 21. Qh4 {[%emt 0:05:46] White is more active.} ({White should try} 21. Qg2 $16 Qd7 22. Bc2) 21... h5 $14 {[%emt 0:00:11]} 22. Kg2 {[%emt 0:02:20]} d4 {[%emt 0:08:12]} 23. c4 {[%emt 0:02:41]} Ne3+ {[%emt 0:03:19]} 24. Bxe3 {[%emt 0:01:33] The board is on fire.} dxe3 {[%emt 0:00:07]} 25. Rxe3 {[%emt 0:00:22][%cal Of1f7]} Rad8 $1 {[%emt 0:05:50]} 26. b3 {[%emt 0:02:21]} Qa5 $1 {[%emt 0:03:54]} 27. Be4 {[%emt 0:05:31]} (27. Ne4 $14) 27... Qd2+ $1 $17 {[%emt 0:04:42][%mdl 1024] Black has strong compensation.} (27... Bh6 $2 28. Rg3 Qd2+ 29. Rf2 $18) 28. Kf3 {[%emt 0:01:23][%cal Bg2f3,Bf3e3,Be3d3][%mdl 32]} Rd6 {[%emt 0:00:20]} 29. Qe1 {[%emt 0:01:25]} Qh2 {[%emt 0:00:47] ( -> ...Rf6+)} 30. Re2 {[%emt 0:03:19]} (30. Rf2 $1 $15 Rf6+ 31. Ke2 Rxf2+ 32. Qxf2 Qxf2+ 33. Kxf2) 30... Rf6+ $19 {[%emt 0:06:16]} ({Reject} 30... Qe5 $6 31. Nh3 $14) 31. Ke3 {[%emt 0:00:01] [#]} Rxf1 $1 {[%emt 0:05:24]} 32. Qxf1 $11 {[%emt 0:00:01]} Qg3+ {[%emt 0:00:13]} 33. Nf3 {[%emt 0:00:04][%cal Bg5f3,Bf3d2,Bd2f1,Bf1g3][%mdl 32]} Rd8 {[%emt 0:00:36][%cal Rg7h6]} ({Not} 33... Re8 34. Kd3 $16) 34. Bd5 $1 {[%emt 0:00:28]} Bh6+ {[%emt 0:04:05]} ({Black should play} 34... b5) 35. Kd3 $16 {[%emt 0:00:20]} Qf4 {[%emt 0:00:34]} 36. Nd2 {[%emt 0:00:44] Qxf4 is the strong threat.} Qxf1 {[%emt 0:03:15]} 37. Nxf1 {[%emt 0:00:02] Threatens to win with Re7.} Rd7 {[%emt 0:00:01] Inhibits Re7.} 38. Ng3 {[%emt 0:00:41]} Kg7 {[%emt 0:00:43]} 39. Ne4 {[%emt 0:00:34]} b6 {[%emt 0:00:01] Inhibits Nc5.} 40. Rg2 {[%emt 0:00:00]} (40. Nd2 $16) 40... Bf4 {[%emt 0:03:49]} (40... h4 $14) 41. Kd4 {[%emt 0:06:18]} ({Better is} 41. Ng3 $16 {Strongly threatening Nxh5+.} Bxg3 42. Rxg3) 41... f5 $11 {[%emt 0:00:00]} 42. Ng5 {[%emt 0:01:49] And now Ne6+ would win.} Bxg5 {[%emt 0:00:05]} (42... Kf6 $15 {keeps the upper hand.} 43. Nh3 Be5+ 44. Ke3 h4) 43. Rxg5 $15 {[%emt 0:00:02][%mdl 4096] Endgame KRB-KR} Kf6 {[%emt 0:00:26]} 44. Rg1 {[%emt 0:01:53]} g5 {[%emt 0:06:01] [#]} (44... a5 $142 45. Re1 Rd6) 45. b4 $1 $18 {[%emt 0:06:14][%cal Bb3b4,Bb4c5,Bc5c6][%mdl 32]} g4 {[%emt 0:00:43] [#]} 46. c5 $1 {[%emt 0:01:02] Black must now prevent c6.} bxc5+ {[%emt 0:00:59]} (46... Rc7 47. c6 h4) 47. bxc5 {[%emt 0:00:07] White is clearly winning.} f4 {[%emt 0:02:39]} 48. c6 {[%emt 0:00:30]} Rh7 {[%emt 0:02:15]} 49. Rc1 {[%emt 0:03:58] What a bad dream for Black.  Weighted Error Value: White=0.23 (precise) /Black=0.31} 1-0